fUST/lending_fUST_20240815
["ID","MTS","AMOUNT","RATE_DAILY","PERIOD"]
[334935516,1723659048263,-500.0,0.00013698,2]
[334935517,1723659048273,-615.8,0.00013698,2]
[334935518,1723659048283,-500.0,0.00013698,2]
[334935519,1723659048293,-151.0,0.00013698,2]
[334935520,1723659048302,-500.0,0.00013698,2]
[334935521,1723659048312,-151.0,0.00013698,2]
[334935522,1723659048322,-500.0,0.00013698,2]
[334935523,1723659048331,-500.0,0.00013698,2]
[334935524,1723659048341,-500.0,0.00013698,2]
[334935525,1723659048351,-541.48,0.00013698,2]
[334935526,1723659048361,-500.0,0.00013698,2]
[334935527,1723659048372,-606.09,0.00013698,2]
[334935528,1723659048382,-500.0,0.00013698,2]
[334935529,1723659048391,-500.0,0.00013698,2]
[334935530,1723659048401,-578.05,0.00013698,2]
[334935531,1723659048410,-500.0,0.00013698,2]
[334935532,1723659048420,-590.79,0.00013698,2]
[334935533,1723659048429,-500.0,0.00013698,2]
[334935534,1723659048439,-653.89,0.00013698,2]
[334935535,1723659048448,-603.1,0.00013698,2]
[334935536,1723659048458,-440.82932583,0.00013698,2]
[334935537,1723659048468,-500.0,0.00013698,2]
[334935538,1723659048477,-500.0,0.00013698,2]
[334935539,1723659048487,-500.0,0.00013698,2]
[334935540,1723659048498,-500.0,0.00013698,2]
[334935541,1723659048507,-500.0,0.00013698,2]
[334935542,1723659048517,-500.0,0.00013698,2]
[334935543,1723659048526,-500.0,0.00013698,2]
[334935544,1723659048536,-500.0,0.00013698,2]
[334935545,1723659048546,-500.0,0.00013698,2]
[334935546,1723659048556,-168.917753,0.00013698,2]
[334935547,1723659048567,-168.917753,0.00013698,2]
[334935548,1723659048576,-500.0,0.00013698,2]
[334935549,1723659048586,-586.3,0.00013698,2]
[334935550,1723659048596,-500.0,0.00013698,2]
[334935551,1723659048606,-543.81,0.00013698,2]
[334935552,1723659048616,-168.917753,0.00013698,2]
[334935553,1723659048627,-168.917753,0.00013698,2]
[334935554,1723659048637,-525.20921789,0.00013698,2]
[334935555,1723659048646,-500.0,0.00013698,2]
[334935556,1723659048656,-500.0,0.00013698,2]
[334935557,1723659048666,-500.0,0.00013698,2]
[334935558,1723659048676,-500.0,0.00013698,2]
[334935559,1723659048685,-500.0,0.00013698,2]
[334935560,1723659048695,-500.0,0.00013698,2]
[334935561,1723659048704,-500.0,0.00013698,2]
[334935562,1723659048714,-500.0,0.00013698,2]
[334935563,1723659048723,-500.0,0.00013698,2]
[334935564,1723659048733,-526.65,0.00013698,2]
[334935565,1723659048743,-1299.43,0.00013698,2]
[334935566,1723659048752,-373.64051077,0.00013698,2]
[334935567,1723659048762,-500.0,0.00013698,2]
[334935568,1723659048772,-500.0,0.00013698,2]
[334935569,1723659048782,-776.01,0.00013698,2]
[334935570,1723659048791,-172.781921,0.00013698,2]
[334935571,1723659048801,-172.781921,0.00013698,2]
[334935572,1723659048810,-500.0,0.00013698,2]
[334935573,1723659048820,-500.0,0.00013698,2]
[334935574,1723659048830,-500.0,0.00013698,2]
[334935575,1723659048839,-172.781921,0.00013698,2]
[334935576,1723659048848,-172.781921,0.00013698,2]
[334935577,1723659048858,-667.84,0.00013698,2]
[334935578,1723659048867,-1016.84506,0.00013698,2]
[334935579,1723659048876,-500.0,0.00013698,2]
[334935580,1723659048886,-1016.84506,0.00013698,2]
[334935581,1723659048896,-380.33113286,0.00013698,2]
[334935582,1723659048906,-500.0,0.00013698,2]
[334935583,1723659048916,-1016.84506,0.00013698,2]
[334935584,1723659048926,-1016.84506,0.00013698,2]
[334935585,1723659048936,-500.0,0.00013698,2]
[334935586,1723659048946,-500.0,0.00013698,2]
[334935587,1723659048956,-500.0,0.00013698,2]
[334935588,1723659048966,-500.0,0.00013698,2]
[334935589,1723659048976,-500.0,0.00013698,2]
[334935590,1723659048986,-500.0,0.00013698,2]
[334935591,1723659048996,-500.0,0.00013698,2]
[334935592,1723659049006,-500.0,0.00013698,2]
[334935593,1723659049016,-500.0,0.00013698,2]
[334935594,1723659049030,-151.0,0.00013698,2]
[334935595,1723659049040,-240.454147,0.00013698,2]
[334935596,1723659049050,-501.08278841,0.00013698,2]
[334935597,1723659049060,-338.053163,0.00013698,2]
[334935598,1723659049071,-500.0,0.00013698,2]
[334935599,1723659049080,-174.1435095,0.00013698,2]
[334935600,1723659049090,-338.053163,0.00013698,2]
[334935601,1723659049101,-500.0,0.00013698,2]
[334935602,1723659049111,-500.0,0.00013698,2]
[334935603,1723659049122,-513.50123882,0.00013698,2]
[334935604,1723659049132,-500.0,0.00013698,2]
[334935605,1723659049142,-338.053163,0.00013698,2]
[334935606,1723659049152,-338.053163,0.00013698,2]
[334935607,1723659049162,-569.39377081,0.00013698,2]
[334935608,1723659049172,-151.0,0.00013698,2]
[334935609,1723659049182,-151.0,0.00013698,2]
[334935610,1723659049192,-500.0,0.00013698,2]
[334935611,1723659049202,-500.0,0.00013698,2]
[334935612,1723659049212,-151.0,0.00013698,2]
[334935613,1723659049222,-737.98,0.00013698,2]
[334935614,1723659049232,-151.0,0.00013698,2]
[334935615,1723659049242,-500.0,0.00013698,2]
[334935616,1723659049252,-363.70863995,0.00013698,2]
[334935617,1723659049262,-500.0,0.00013698,2]
[334935618,1723659049272,-500.0,0.00013698,2]
[334935619,1723659049284,-500.0,0.00013698,2]
[334935620,1723659049294,-698.13,0.00013698,2]
[334935621,1723659049303,-151.0,0.00013698,2]
[334935622,1723659049312,-500.0,0.00013698,2]
[334935623,1723659049322,-151.0,0.00013698,2]
[334935624,1723659049332,-540.68,0.00013698,2]
[334935625,1723659049342,-500.0,0.00013698,2]
[334935626,1723659049352,-500.0,0.00013698,2]
[334935627,1723659049362,-500.0,0.00013698,2]
[334935628,1723659049371,-331.22858278,0.00013698,2]
[334935629,1723659049381,-246.97786318,0.00013698,2]
[334935630,1723659049391,-500.0,0.00013698,2]
[334935631,1723659049401,-500.0,0.00013698,2]
[334935632,1723659049411,-597.72,0.00013698,2]
[334935633,1723659049420,-500.0,0.00013698,2]
[334935634,1723659049430,-500.0,0.00013698,2]
[334935635,1723659049440,-500.0,0.00013698,2]
[334935636,1723659049449,-500.0,0.00013698,2]
[334935637,1723659049459,-591.4477394,0.00013698,2]
[334935638,1723659049469,-506.15794971,0.00013698,2]
[334935639,1723659049478,-500.0,0.00013698,2]
[334935640,1723659049489,-500.0,0.00013698,2]
[334935641,1723659049498,-163.64916,0.00013698,2]
[334935642,1723659049508,-163.64916,0.00013698,2]
[334935643,1723659049519,-500.0,0.00013698,2]
[334935644,1723659049531,-163.64916,0.00013698,2]
[334935645,1723659049541,-163.64916,0.00013698,2]
[334935646,1723659049552,-753.94,0.00013698,2]
[334935647,1723659049566,-861.01,0.00013698,2]
[334935648,1723659049575,-500.0,0.00013698,2]
[334935649,1723659049585,-500.0,0.00013698,2]
[334935650,1723659049595,-500.0,0.00013698,2]
[334935651,1723659049605,-500.0,0.00013698,2]
[334935652,1723659049614,-500.0,0.00013698,2]
[334935653,1723659049624,-500.0,0.00013698,2]
[334935654,1723659049634,-500.0,0.00013698,2]
[334935655,1723659049644,-386.67576032,0.00013698,2]
[334935656,1723659049654,-790.77,0.00013698,2]
[334935657,1723659049663,-500.0,0.00013698,2]
[334935658,1723659049673,-500.0,0.00013698,2]
[334935659,1723659049682,-500.0,0.00013698,2]
[334935660,1723659049692,-234.65402979,0.00013698,2]
[334935661,1723659049702,-500.0,0.00013698,2]
[334935662,1723659049712,-500.0,0.00013698,2]
[334935663,1723659049722,-500.0,0.00013698,2]
[334935664,1723659049732,-461.72815,0.00013698,2]
[334935665,1723659049742,-461.72815,0.00013698,2]
[334935666,1723659049751,-823.35,0.00013698,2]
[334935667,1723659049763,-277.84397987,0.00013698,2]
[334935668,1723659049773,-461.72815,0.00013698,2]
[334935669,1723659049785,-735.77,0.00013698,2]
[334935670,1723659049794,-461.72815,0.00013698,2]
[334935671,1723659049803,-720.59,0.00013698,2]
[334935672,1723659049813,-701.95,0.00013698,2]
[334935673,1723659049823,-502.21283972,0.00013698,2]
[334935674,1723659049832,-500.0,0.00013698,2]
[334935675,1723659049843,-500.0,0.00013698,2]
[334935676,1723659049852,-500.0,0.00013698,2]
[334935677,1723659049862,-500.0,0.00013698,2]
[334935678,1723659049871,-500.0,0.00013698,2]
[334935679,1723659049881,-500.0,0.00013698,2]
[334935680,1723659049890,-500.0,0.00013698,2]
[334935681,1723659049901,-360.51454889,0.00013698,2]
[334935682,1723659049910,-500.0,0.00013698,2]
[334935683,1723659049920,-500.0,0.00013698,2]
[334935684,1723659049930,-500.0,0.00013698,2]
[334935685,1723659049939,-500.0,0.00013698,2]
[334935686,1723659049949,-842.91,0.00013698,2]
[334935687,1723659049958,-151.0,0.00013698,2]
[334935688,1723659049968,-774.78,0.00013698,2]
[334935689,1723659049977,-167.98042,0.00013698,2]
[334935690,1723659049987,-500.0,0.00013698,2]
[334935691,1723659049997,-500.0,0.00013698,2]
[334935692,1723659050117,-500.0,0.00013698,2]
[334935693,1723659050127,-500.0,0.00013698,2]
[334935694,1723659050137,-500.0,0.00013698,2]
[334935695,1723659050146,-519.09,0.00013698,2]
[334935696,1723659050155,-500.0,0.00013698,2]
[334935697,1723659050164,-500.89830251,0.00013698,2]
[334935698,1723659050174,-500.0,0.00013698,2]
[334935699,1723659050184,-763.82,0.00013698,2]
[334935700,1723659050193,-682.43755,0.00013698,2]
[334935701,1723659050202,-682.43755,0.00013698,2]
[334935702,1723659050211,-808.205316,0.00013698,2]
[334935703,1723659050220,-808.205316,0.00013698,2]
[334935704,1723659050230,-500.0,0.00013698,2]
[334935705,1723659050242,-500.0,0.00013698,2]
[334935706,1723659050252,-512.34466686,0.00013698,2]
[334935707,1723659050261,-682.43755,0.00013698,2]
[334935708,1723659050271,-682.43755,0.00013698,2]
[334935709,1723659050286,-500.0,0.00013698,2]
[334935710,1723659050295,-808.205316,0.00013698,2]
[334935711,1723659050304,-808.205316,0.00013698,2]
[334935712,1723659050313,-498.913558,0.00013698,2]
[334935713,1723659050322,-498.913558,0.00013698,2]
[334935714,1723659050332,-668.79,0.00013698,2]
[334935715,1723659050341,-498.913558,0.00013698,2]
[334935716,1723659050351,-498.913558,0.00013698,2]
[334935717,1723659050360,-500.0,0.00013698,2]
[334935718,1723659050370,-736.58,0.00013698,2]
[334935719,1723659050379,-771.95,0.00013698,2]
[334935720,1723659050388,-407.5702933,0.00013698,2]
[334935721,1723659050398,-619.96,0.00013698,2]
[334935722,1723659050407,-500.0,0.00013698,2]
[334935723,1723659050416,-500.0,0.00013698,2]
[334935724,1723659050425,-500.0,0.00013698,2]
[334935725,1723659050435,-544.07,0.00013698,2]
[334935726,1723659050444,-752.25,0.00013698,2]
[334935727,1723659050453,-500.0,0.00013698,2]
[334935728,1723659050464,-500.0,0.00013698,2]
[334935729,1723659050473,-500.0,0.00013698,2]
[334935730,1723659050482,-516.31393146,0.00013698,2]
[334935731,1723659050491,-500.0,0.00013698,2]
[334935732,1723659050501,-516.95174422,0.00013698,2]
[334935733,1723659050510,-151.0,0.00013698,2]
[334935734,1723659050520,-500.0,0.00013698,2]
[334935735,1723659050530,-151.0,0.00013698,2]
[334935736,1723659050547,-269.28091569,0.00013698,2]
[334935737,1723659050557,-500.0,0.00013698,2]
[334935738,1723659050567,-500.0,0.00013698,2]
[334935739,1723659050576,-500.0,0.00013698,2]
[334935740,1723659050586,-1215.17,0.00013698,2]
[334935741,1723659050595,-500.0,0.00013698,2]
[334935742,1723659050604,-500.0,0.00013698,2]
[334935743,1723659050614,-2039.11,0.00013698,2]
[334935744,1723659050624,-500.0,0.00013698,2]
[334935745,1723659050634,-610.67933789,0.00013698,2]
[334935746,1723659050643,-500.0,0.00013698,2]
[334935747,1723659050652,-364.10240343,0.00013698,2]
[334935748,1723659050662,-500.0,0.00013698,2]
[334935749,1723659050671,-500.0,0.00013698,2]
[334935750,1723659050681,-500.0,0.00013698,2]
[334935751,1723659050692,-500.0,0.00013698,2]
[334935752,1723659050702,-500.0,0.00013698,2]
[334935753,1723659050711,-500.0,0.00013698,2]
[334935754,1723659050721,-500.0,0.00013698,2]
[334935755,1723659050730,-500.0,0.00013698,2]
[334935756,1723659050740,-500.0,0.00013698,2]
[334935757,1723659050750,-657.59,0.00013698,2]
[334935758,1723659050759,-625.17776605,0.00013698,2]
[334935759,1723659050768,-500.0,0.00013698,2]
[334935760,1723659050778,-500.0,0.00013698,2]
[334935761,1723659050790,-500.0,0.00013698,2]
[334935762,1723659050800,-500.0,0.00013698,2]
[334935763,1723659050809,-1469.67,0.00013698,2]
[334935764,1723659050818,-500.0,0.00013698,2]
[334935765,1723659050828,-509.76107198,0.00013698,2]
[334935766,1723659050838,-536.98,0.00013698,2]
[334935767,1723659050848,-1253.79,0.00013698,2]
[334935768,1723659050857,-795.62,0.00013698,2]
[334935769,1723659050866,-500.0,0.00013698,2]
[334935770,1723659050876,-500.0,0.00013698,2]
[334935771,1723659050885,-500.0,0.00013698,2]
[334935772,1723659050896,-500.0,0.00013698,2]
[334935773,1723659050906,-500.0,0.00013698,2]
[334935774,1723659050916,-500.0,0.00013698,2]
[334935775,1723659050926,-500.0,0.00013698,2]
[334935776,1723659050935,-322.621661,0.00013698,2]
[334935777,1723659050945,-322.621661,0.00013698,2]
[334935778,1723659050955,-502.17024198,0.00013698,2]
[334935779,1723659050965,-500.0,0.00013698,2]
[334935780,1723659050975,-500.0,0.00013698,2]
[334935781,1723659050984,-500.0,0.00013698,2]
[334935782,1723659050994,-500.0,0.00013698,2]
[334935783,1723659051004,-500.0,0.00013698,2]
[334935784,1723659051014,-500.0,0.00013698,2]
[334935785,1723659051027,-322.621661,0.00013698,2]
[334935786,1723659051039,-322.621661,0.00013698,2]
[334935787,1723659051048,-205.6628186,0.00013698,2]
[334935788,1723659051057,-500.0,0.00013698,2]
[334935789,1723659051067,-1866.2,0.00013698,2]
[334935790,1723659051076,-500.0,0.00013698,2]
[334935791,1723659051086,-500.0,0.00013698,2]
[334935792,1723659051095,-500.0,0.00013698,2]
[334935793,1723659051107,-500.0,0.00013698,2]
[334935794,1723659051119,-500.0,0.00013698,2]
[334935795,1723659051129,-500.0,0.00013698,2]
[334935796,1723659051139,-500.0,0.00013698,2]
[334935797,1723659051149,-500.0,0.00013698,2]
[334935798,1723659051159,-500.0,0.00013698,2]
[334935799,1723659051168,-500.0,0.00013698,2]
[334935800,1723659051177,-515.84301253,0.00013698,2]
[334935801,1723659051186,-612.85,0.00013698,2]
[334935802,1723659051195,-500.0,0.00013698,2]
[334935803,1723659051205,-511.34002103,0.00013698,2]
[334935804,1723659051214,-551.30697517,0.00013698,2]
[334935805,1723659051223,-500.0,0.00013698,2]
[334935806,1723659051232,-500.0,0.00013698,2]
[334935807,1723659051242,-500.0,0.00013698,2]
[334935808,1723659051251,-552.94,0.00013698,2]
[334935809,1723659051261,-576.43,0.00013698,2]
[334935810,1723659051271,-4441.96,0.00013698,2]
[334935811,1723659051282,-500.0,0.00013698,2]
[334935812,1723659051292,-500.0,0.00013698,2]
[334935813,1723659051301,-500.0,0.00013698,2]
[334935814,1723659051310,-500.0,0.00013698,2]
[334935815,1723659051320,-500.0,0.00013698,2]
[334935816,1723659051330,-500.0,0.00013698,2]
[334935817,1723659051339,-500.0,0.00013698,2]
[334935818,1723659051349,-500.0,0.00013698,2]
[334935819,1723659051359,-500.0,0.00013698,2]
[334935820,1723659051369,-653.51,0.00013698,2]
[334935821,1723659051379,-500.0,0.00013698,2]
[334935822,1723659051389,-546.35,0.00013698,2]
[334935823,1723659051398,-500.0,0.00013698,2]
[334935824,1723659051408,-500.0,0.00013698,2]
[334935825,1723659051418,-500.0,0.00013698,2]
[334935826,1723659051427,-663.65,0.00013698,2]
[334935827,1723659051437,-500.0,0.00013698,2]
[334935828,1723659051457,-505.77,0.00013698,2]
[334935829,1723659051467,-500.0,0.00013698,2]
[334935830,1723659051477,-723.94,0.00013698,2]
[334935831,1723659051488,-500.0,0.00013698,2]
[334935832,1723659051498,-500.83942618,0.00013698,2]
[334935833,1723659051508,-500.0,0.00013698,2]
[334935834,1723659051517,-500.0,0.00013698,2]
[334935835,1723659051527,-565.96,0.00013698,2]
[334935836,1723659051540,-502.60012438,0.00013698,2]
[334935837,1723659051550,-812.83,0.00013698,2]
[334935838,1723659051561,-955.283455,0.00013698,2]
[334935839,1723659051572,-812.83,0.00013698,2]
[334935840,1723659051582,-812.83,0.00013698,2]
[334935841,1723659051591,-955.283455,0.00013698,2]
[334935842,1723659051602,-151.0,0.00013698,2]
[334935843,1723659051612,-812.83,0.00013698,2]
[334935844,1723659051622,-500.0,0.00013698,2]
[334935845,1723659051632,-812.83,0.00013698,2]
[334935846,1723659051642,-151.0,0.00013698,2]
[334935847,1723659051652,-500.0,0.00013698,2]
[334935848,1723659051663,-812.83,0.00013698,2]
[334935849,1723659051673,-151.0,0.00013698,2]
[334935850,1723659051684,-812.83,0.00013698,2]
[334935851,1723659051696,-812.83,0.00013698,2]
[334935852,1723659051708,-151.0,0.00013698,2]
[334935853,1723659051719,-812.83,0.00013698,2]
[334935854,1723659051729,-812.83,0.00013698,2]
[334935855,1723659051739,-812.83,0.00013698,2]
[334935856,1723659051749,-812.83,0.00013698,2]
[334935857,1723659051759,-500.0,0.00013698,2]
[334935858,1723659051769,-812.83,0.00013698,2]
[334935859,1723659051779,-812.83,0.00013698,2]
[334935860,1723659051790,-812.83,0.00013698,2]
[334935861,1723659051800,-955.283455,0.00013698,2]
[334935862,1723659051809,-812.83,0.00013698,2]
[334935863,1723659051820,-955.283455,0.00013698,2]
[334935864,1723659051831,-812.83,0.00013698,2]
[334935865,1723659051842,-812.83,0.00013698,2]
[334935866,1723659051853,-502.67721468,0.00013698,2]
[334935867,1723659051863,-798.946199,0.00013698,2]
[334935868,1723659051873,-798.946199,0.00013698,2]
[334935869,1723659051882,-500.0,0.00013698,2]
[334935870,1723659051891,-500.0,0.00013698,2]
[334935871,1723659051901,-500.0,0.00013698,2]
[334935872,1723659051910,-500.0,0.00013698,2]
[334935873,1723659051920,-798.946199,0.00013698,2]
[334935874,1723659051930,-798.946199,0.00013698,2]
[334935875,1723659051940,-3000.0,0.00013699,2]
[334935876,1723659051951,-413.841617,0.00013699,2]
[334935877,1723659051962,-330.08306249,0.00013852,2]
[334935878,1723659051971,-239.53426,0.00013862,2]
[334935879,1723659051980,-239.53426,0.00013862,2]
[334935880,1723659051990,-812.83,0.0001387,2]
[334935881,1723659051999,-500.0,0.00013871,2]
[334935882,1723659052009,-500.0,0.00013871,2]
[334935883,1723659052019,-172.781921,0.00013872,2]
[334935884,1723659052032,-172.781921,0.00013872,2]
[334935885,1723659052042,-151.0,0.00013872,2]
[334935886,1723659052052,-163.64916,0.00013872,2]
[334935887,1723659052062,-163.64916,0.00013872,2]
[334935888,1723659052073,-682.43755,0.00013872,2]
[334935889,1723659052083,-682.43755,0.00013872,2]
[334935890,1723659052092,-498.913558,0.00013872,2]
[334935891,1723659052103,-498.913558,0.00013872,2]
[334935892,1723659052113,-812.83,0.00013951,2]
[334935893,1723659052124,-812.83,0.00013951,2]
[334935894,1723659052133,-812.83,0.00013951,2]
[334935895,1723659052143,-812.83,0.00013951,2]
[334935896,1723659052153,-813.02276684,0.00013951,2]
[334935897,1723659052319,-25419.2824989,0.00013952,2]
[334935898,1723659052329,-290.945632,0.00013952,2]
[334935899,1723659052338,-290.945632,0.00013952,2]
[334935900,1723659052348,-808.205316,0.00013952,2]
[334935901,1723659052357,-808.205316,0.00013952,2]
[334935902,1723659052367,-151.0,0.00013952,2]
[334935903,1723659052377,-955.283455,0.00013952,2]
[334935904,1723659052386,-151.0,0.00013952,2]
[334935905,1723659052396,-151.0,0.00013952,2]
[334935906,1723659052406,-955.283455,0.00013952,2]
[334935907,1723659052415,-500.0,0.00013961,2]
[334935908,1723659052425,-500.0,0.00013961,2]
[334935909,1723659052434,-500.0,0.00013961,2]
[334935910,1723659052443,-500.0,0.00013961,2]
[334935911,1723659052452,-151.0,0.00013962,2]
[334935912,1723659052462,-151.0,0.00013962,2]
[334935913,1723659052471,-151.0,0.00013962,2]
[334935914,1723659052481,-427.425453,0.00013962,2]
[334935915,1723659052491,-427.425453,0.00013962,2]
[334935916,1723659052501,-801.15243,0.00013962,2]
[334935917,1723659052511,-801.15243,0.00013962,2]
[334935918,1723659052520,-239.53426,0.00013962,2]
[334935919,1723659052531,-239.53426,0.00013962,2]
[334935920,1723659052541,-151.0,0.00013962,2]
[334935921,1723659052550,-151.0,0.00013962,2]
[334935922,1723659052559,-151.0,0.00013962,2]
[334935923,1723659052568,-151.0,0.00013962,2]
[334935924,1723659052577,-555.817113,0.00013962,2]
[334935925,1723659052586,-151.0,0.00013962,2]
[334935926,1723659052596,-151.0,0.00013962,2]
[334935927,1723659052605,-151.0,0.00013962,2]
[334935928,1723659052614,-151.0,0.00013962,2]
[334935929,1723659052624,-151.0,0.00013962,2]
[334935930,1723659052633,-168.917753,0.00013962,2]
[334935931,1723659052642,-168.917753,0.00013962,2]
[334935932,1723659052652,-168.917753,0.00013962,2]
[334935933,1723659052661,-168.917753,0.00013962,2]
[334935934,1723659052670,-1016.84506,0.00013962,2]
[334935935,1723659052681,-1016.84506,0.00013962,2]
[334935936,1723659052692,-1016.84506,0.00013962,2]
[334935937,1723659052702,-1016.84506,0.00013962,2]
[334935938,1723659052713,-338.053163,0.00013962,2]
[334935939,1723659052723,-338.053163,0.00013962,2]
[334935940,1723659052735,-151.0,0.00013962,2]
[334935941,1723659052745,-151.0,0.00013962,2]
[334935942,1723659052754,-151.0,0.00013962,2]
[334935943,1723659052764,-151.0,0.00013962,2]
[334935944,1723659052774,-461.72815,0.00013962,2]
[334935945,1723659052785,-461.72815,0.00013962,2]
[334935946,1723659052794,-461.72815,0.00013962,2]
[334935947,1723659052804,-461.72815,0.00013962,2]
[334935948,1723659052813,-322.621661,0.00013962,2]
[334935949,1723659052822,-322.621661,0.00013962,2]
[334935950,1723659052832,-798.946199,0.00013962,2]
[334935951,1723659052845,-50838.5649978,0.00013962,2]
[334935952,1723659052855,-152.069158,0.00013971,2]
[334935953,1723659052865,-151.0,0.00013971,2]
[334935954,1723659052874,-151.0,0.00013971,2]
[334935955,1723659052884,-500.0,0.00013971,2]
[334935956,1723659052894,-500.0,0.00013971,2]
[334935957,1723659052903,-500.0,0.00013971,2]
[334935958,1723659052912,-500.0,0.00013971,2]
[334935959,1723659052922,-627.56,0.00013971,2]
[334935960,1723659052931,-151.0,0.00013971,2]
[334935961,1723659052941,-153.203742,0.00013971,2]
[334935962,1723659052950,-163.64916,0.00013971,2]
[334935963,1723659052959,-163.64916,0.00013971,2]
[334935964,1723659052970,-500.0,0.00013971,2]
[334935965,1723659052979,-500.0,0.00013971,2]
[334935966,1723659052989,-500.0,0.00013971,2]
[334935967,1723659052998,-500.0,0.00013971,2]
[334935968,1723659053007,-500.0,0.00013971,2]
[334935969,1723659053017,-500.0,0.00013971,2]
[334935970,1723659053031,-643.25286879,0.00013971,2]
[334935971,1723659053041,-682.43755,0.00013971,2]
[334935972,1723659053051,-682.43755,0.00013971,2]
[334935973,1723659053061,-498.913558,0.00013971,2]
[334935974,1723659053073,-498.913558,0.00013971,2]
[334935975,1723659053082,-53392.37711857,0.00013972,2]
[334935976,1723659053092,-151.0,0.00013972,2]
[334935977,1723659053103,-151.0,0.00013972,2]
[334935978,1723659053112,-151.0,0.00013972,2]
[334935979,1723659053122,-500.0,0.00013972,2]
[334935980,1723659053132,-295.617155,0.00013972,2]
[334935981,1723659053142,-295.617155,0.00013972,2]
[334935982,1723659053152,-290.945632,0.00013972,2]
[334935983,1723659053161,-290.945632,0.00013972,2]
[334935984,1723659053170,-151.0,0.00013972,2]
[334935985,1723659053180,-151.0,0.00013972,2]
[334935986,1723659053189,-290.945632,0.00013972,2]
[334935987,1723659053199,-290.945632,0.00013972,2]
[334935988,1723659053208,-152.083255,0.00013972,2]
[334935989,1723659053217,-500.0,0.00013972,2]
[334935990,1723659053227,-151.0,0.00013972,2]
[334935991,1723659053236,-151.0,0.00013972,2]
[334935992,1723659053246,-201.114951,0.00013972,2]
[334935993,1723659053256,-201.114951,0.00013972,2]
[334935994,1723659053265,-151.896447,0.00013972,2]
[334935995,1723659053275,-549.27,0.00013972,2]
[334935996,1723659053286,-546.97301708,0.00013972,2]
[334935997,1723659053295,-508.01163948,0.00013972,2]
[334935998,1723659053304,-500.0,0.00013972,2]
[334935999,1723659053314,-500.0,0.00013972,2]
[334936000,1723659053323,-595.06,0.00013972,2]
[334936001,1723659053332,-588.92,0.00013972,2]
[334936002,1723659053342,-151.0,0.00013972,2]
[334936003,1723659053352,-216.90619,0.00013972,2]
[334936004,1723659053362,-569.32236812,0.00013972,2]
[334936005,1723659053371,-347.5944329,0.00013972,2]
[334936006,1723659053381,-677.85,0.00013972,2]
[334936007,1723659053390,-500.0,0.00013972,2]
[334936008,1723659053399,-500.0,0.00013972,2]
[334936009,1723659053409,-500.0,0.00013972,2]
[334936010,1723659053418,-500.0,0.00013972,2]
[334936011,1723659053428,-500.0,0.00013972,2]
[334936012,1723659053437,-500.0,0.00013972,2]
[334936013,1723659053447,-582.19282732,0.00013972,2]
[334936014,1723659053456,-500.0,0.00013972,2]
[334936015,1723659053465,-500.0,0.00013972,2]